{"text_format":"1","workbook":"xlsx","n_sheets":14,"sheets":["Einführung","Daten","Grafik und Ergebnisse","Parameter","Methodik","Kalk Ergebnisse","Kalk Nutz_Bestand","Kalk Nutz_Neu","Kalk Dämmung","Kalk Bausubstanz","Quelle Bsp","Listen","Farben","Lebenszyklus"],"not_rendered":{"charts":4,"images":15,"macros":1,"external_links":0,"defined_names":0,"comments":2,"pivot_tables":0},"unopened":[],"bounds":{"document_bytes":16777216,"sheet_cells":100000,"rows_first":2000,"rows_last":500,"rows_between":2000,"halvings":0,"cell_chars":16384,"cell_head_chars":4096},"cells_cut":0,"cells_raw":0,"read":"whole","date_system":"1900"}

{"sheet":"Einführung","index":0,"n_rows":70,"n_cols":6,"rows_kept":70,"cut":false,"hidden":false,"merged":[[51,1,51,8],[1,1,1,8],[3,1,3,8],[50,1,50,8],[4,1,5,8],[14,1,14,8],[15,1,28,8]]}
[]
[null,"GREGOR - Graue Energie von Gebäuden - Ökologischer Rucksack"]
[]
[null,"12/2022"]
[null,"Zur Verfügung gestellt von klimaaktiv, der Klimaschutzinitative des Bundesministeriums für Klimaschutz, Umwelt, Energie, Mobilität, Innovation und Technologie."]
[]
[]
[]
[]
[]
[]
[]
[]
[]
[null,"Kurzbeschreibung des Tools"]
[null,"Sanierung oder Neubau? Betrachtet man ein Gebäude anhand seiner Energieeffizienz wird der Neubau der Sanierung oft vorgezogen. Aus ökologischer Sichtweise kann eine Sanierung allerdings durchwegs klimafreundlicher sein als der Abriss und Neubau des Gebäudes. Immerhin wurden durch den Bau des Gebäudes bereits Energie verbraucht und Emissionen verursacht. \n\nDieses Excel-Tool ermöglicht eine Abschätzung des 'versteckten' ökologischen Rucksacks über den Lebenszyklus eines Gebäudes. In der Betrachtung werden die Treibhausgas-Emissionen (CO2e-Emissionen) und die fossile Primärenergie (graue Energie) eines Gebäudes für die Szenarien Sanierung und Neubau miteinander verglichen. Dabei werden neben den jährlichen THG-Emissionen, welche durch die Bereistellung von Energie in der Nutzungsphase anfallen, auch jene THG-Emissionen berücksichtigt, welche über den Lebensweg der Baustoffe entstehen. Parallel dazu erfolgt eine Bilanzierung der \"grauen Energie\". Da es sich um Standardwerte handelt dient das Tool zur Einordung und Abschätzung der Größenverhältnisse. Für detaillierte Daten zu einem spezifischen Bauvorhaben ist eine umfassende Ökobilanz erforderlich."]
[]
[]
[]
[]
[]
[]
[]
[]
[]
[]
[]
[]
[]
[]
[]
[]
[]
[]
[]
[]
[]
[]
[]
[]
[]
[]
[]
[]
[]
[]
[]
[]
[]
[]
[null,"Zielgruppe"]
[null,"Planner:innen und Entwickler:innen, interessierte Öffentlichkeit"]
[]
[null,"Glossar"]
[null,"a","Jahr"]
[null,"BGF","Bruttogrundfläche, Summe aller Grundflächen des Gebäudes"]
[null,"CO2e","Kohlendioxid-Äquivalent, beschreibt das Treibhausgaspotenzial einer Aktivität"]
[null,"EFH","Einfamilienhaus"]
[null,"MFH","Mehrfamilienhaus"]
[null,"MWB","Mehrgeschossiger Wohnbau"]
[null,"NE","Nutzeinheit"]
[null,"PEB","Primärenergiebedarf"]
[null,"WP","Wärmepumpe"]
[]
[null,"Rückfragen"]
[null,"Lorenz Strimitzer",null,null,null,"Melanie Harrer"]
[null,"Österreichiche Energieagentur",null,null,null,"Österreichische Energieagentur"]
[null,"Mariahilfer Straße 136 | 1150 Wien | Österreich",null,null,null,"Mariahilfer Straße 136 | 1150 Wien | Österreich"]
[null,"T. +43 (0)1 586 15 24-135 ",null,null,null,"T. +43 (0)1 586 15 24-649 202"]
[null,"lorenz.strimitzer@energyagency.at",null,null,null,"melanie.harrer@energyagency.at"]

{"sheet":"Daten","index":1,"n_rows":34,"n_cols":16,"rows_kept":34,"cut":false,"hidden":false,"merged":[[30,6,31,11],[33,6,34,11],[21,15,22,19],[24,15,25,19],[2,15,3,16],[6,15,7,19],[9,15,10,19],[15,15,16,19],[12,15,13,19],[18,15,19,19],[21,3,22,5],[24,3,25,5],[18,3,19,5],[18,6,19,11],[2,2,3,4],[6,6,7,11],[9,6,10,11],[12,6,13,11],[15,6,16,11],[6,3,7,5],[9,3,10,5],[12,3,13,5],[15,3,16,5],[21,6,22,11],[24,6,25,11]]}
[]
[]
[null,null,"Daten Eingabe",null,null,null,null,null,null,null,null,null,null,null,null,"Information"]
[]
[]
[]
[null,null,null,"Gebäudekategorie",null,null,"bitte auswählen",null,null,null,null,null,null,null,null,"Auswahl aus Einfamilienhaus (1-2 NE), Mehrfamilienhaus und Reihenhaus (2-10 NE), Mehrgeschossiger, großvolumiger Wohnbau (ab 11 NE), NE = Nutzeinheiten"]
[]
[]
[null,null,null,"Bauperiode Bestandsgebäude",null,null,"bitte auswählen",null,null,null,null,null,null,null,null,"Auswahl der Bauperiode zwischen bis 1918; 1918-1944; 1945-1960; 1961-1990; ab 1991"]
[]
[]
[null,null,null,"Bruttogrundfläche [m²]",null,null,0,null,null,null,null,null,null,null,null,"Angabe der Bruttogrundfläche ist die Summe aller Grundflächen des Gebäudes "]
[]
[]
[null,null,null,"Wärmebereitstellungssystem Bestandsgebäude",null,null,"bitte auswählen",null,null,null,null,null,null,null,null,"Auswahl aus Erdgas; Erdgas Brennwert; Heizöl; Holz; Fernwärme Erneuerbar; Fernwärme Österreich-Mix, Wärmepumpe (hier: Luft-WP)"]
[]
[]
[null,null,null,"Wärmebereitstellungssystem nach Sanierung bzw. Neubau",null,null,"bitte auswählen",null,null,null,null,null,null,null,null,"Auswahl aus Holz, Fernwärme Erneuerbar, Fernwärme Österreich-Mix (Annahme: 50 % erneuerbar), Wärmepumpe (hier: Luft-WP)"]
[]
[]
[null,null,null,"Dämmaterial für Sanierung bzw. Neubau",null,null,"bitte auswählen",null,null,null,null,null,null,null,null,"Dämmaterial für Sanierung und Neubau; Auswahl zwischen standardisierter Dämmung aus EPS oder aus ökologischer Dämmung (hier: Hanf) "]
[]
[]
[null,null,null,"Nutzungsdauer Gebäude ab Sanierung bzw. Neubau/Heizungstausch",null,null,30,null,null,null,null,null,null,null,null,"Nutzungsdauer des Gebäudes in Jahren; Standardwert: 30 Jahre - Annahme zur Nutzung bis zur nächsten Sanierung bzw. Lebensdauer des Heizsystems"]
[]
[]
[]
[]
[]
[null,null,null,null,null,null,"Jetzt berechnen!"]
[]
[]
[null,null,null,null,null,null,"Genauere Daten? Hier geht’s zur Parameteranpassung"]

{"sheet":"Grafik und Ergebnisse","index":2,"n_rows":71,"n_cols":29,"rows_kept":71,"cut":false,"hidden":false,"merged":[[22,4,22,5],[28,4,28,5],[22,20,22,21],[28,20,28,21],[32,2,32,6],[32,8,32,12],[32,18,32,22],[22,6,22,7],[28,6,28,7],[22,8,22,9],[28,8,28,9],[22,22,22,23],[28,22,28,23],[32,24,32,28],[66,3,66,12],[66,1,66,2],[65,1,65,2],[69,1,69,2],[67,1,67,2],[65,3,65,12],[70,1,70,2],[68,1,68,2],[70,3,70,12],[67,3,67,12],[69,3,69,12],[68,3,68,12]]}
[]
[null,"Ergebnisse: Ökologischer Rucksack"]
[]
[]
[]
[]
[]
[]
[]
[]
[null,"Ökologischer Rucksack: CO2e-Emissionen",null,null,null,null,null,null,null,null,null,null,null,null,null,null,null,"Ökologischer Rucksack: Graue Energie"]
[]
[]
[null,null,{"$f":"\"Unter Berücksichtigung des Lebenszyklus des Gebäudes und einer Nutzungsdauer von \" & INT(Daten!G25) & \" Jahren werden durch die Sanierung \" & INT('Grafik und Ergebnisse'!F38) & \" Tonnen CO2e verursacht.\"","v":{"$error":"#N/A"}},null,null,null,null,null,null,null,null,null,null,null,null,null,null,null,{"$f":"\"Unter Berücksichtigung des Lebenszyklus des Gebäudes und einer Nutzungsdauer von \" & INT(Daten!G25) & \" Jahren werden durch die Sanierung \" & INT(V38) & \" MWh Energie eingesetzt.\"","v":{"$error":"#N/A"}}]
[null,null,{"$f":" \"Durch den Neubau entstehen \" & INT('Grafik und Ergebnisse'!G38) & \" Tonnen CO2e.\"","v":{"$error":"#N/A"}},null,null,null,null,null,null,null,null,null,null,null,null,null,null,null,{"$f":"\"Für den Neubau werden \" & INT('Grafik und Ergebnisse'!W38) & \" MWh Energie benötigt.\"","v":{"$error":"#N/A"}}]
[null,null,{"$f":" \"Der 'versteckte' Ökologische Rucksack durch die CO2 Emissionen der Bausubstanz des Gebäudes beträgt \" & INT(F36) & \" Tonnen CO2e für die Sanierung, und \" & INT(G36) & \" Tonnen CO2e für den Neubau.\"","v":{"$error":"#N/A"}},null,null,null,null,null,null,null,null,null,null,null,null,null,null,null,{"$f":" \"Der 'versteckte' Ökologische Rucksack durch die graue Energie der Bausubstanz des Gebäudes beträgt \" & INT(V36) & \" MWh für die Sanierung, und \" & INT(W36) & \" MWh für den Neubau.\"","v":{"$error":"#N/A"}}]
[null,null,{"$f":" \"Umgerechnet sind das: \"","v":"Umgerechnet sind das: "},null,null,null,null,null,null,null,null,null,null,null,null,null,null,null,{"$f":"\"Umgerechnet sind das: \"","v":"Umgerechnet sind das: "}]
[]
[]
[null,null,"CO2e-",null,null,null,null,null,null,null,null,null,null,null,null,null,null,null,"Graue"]
[null,null,"Emissionen",null,null,null,null,null,null,null,null,null,null,null,null,null,null,null,"Energie"]
[null,null,"Bausubstanz",null,null,null,null,null,null,null,null,null,null,null,null,null,null,null,"Bausubstanz"]
[null,null,"Sanierung",null,{"$f":"INT(F36*1000/21/100) & \" Bäume\"","v":{"$error":"#N/A"}},null,{"$f":"TEXT(F36*1000000/164, \"### ### ##0\") & \" km\"","v":{"$error":"#N/A"}},null,{"$f":"INT(F36/1.1) & \" Flugreisen\"","v":{"$error":"#N/A"}},null,null,null,null,null,null,null,null,null,"Sanierung",null,{"$f":"INT(V36*1000/3500) & \" Haushalte\"","v":{"$error":"#N/A"}},null,{"$f":"TEXT(V36*1000/0.15,\"### ### ##0\") & \" km\"","v":{"$error":"#N/A"}},null,{"$f":"TEXT(V36*1000/1.5, \"### ### ##0\") & \" h Backofen\"","v":{"$error":"#N/A"}}]
[]
[]
[null,null,"CO2e-",null,null,null,null,null,null,null,null,null,null,null,null,null,null,null,"Graue"]
[null,null,"Emissionen",null,null,null,null,null,null,null,null,null,null,null,null,null,null,null,"Energie"]
[null,null,"Bausubstanz",null,null,null,null,null,null,null,null,null,null,null,null,null,null,null,"Bausubstanz"]
[null,null,"Neubau",null,{"$f":" INT(G36*1000/21/100) & \" Bäume\"","v":{"$error":"#N/A"}},null,{"$f":"TEXT(G36*1000000/164, \"### ### ##0\") & \" km\"","v":{"$error":"#N/A"}},null,{"$f":"INT(G36/1.1) & \" Flugreisen\"","v":{"$error":"#N/A"}},null,null,null,null,null,null,null,null,null,"Neubau",null,{"$f":" INT(W36*1000/3500) & \" Haushalte\"","v":{"$error":"#N/A"}},null,{"$f":"TEXT(W36*1000/0.15, \"### ### ##0\") & \" km\"","v":{"$error":"#N/A"}},null,{"$f":"TEXT(W36*1000/1.5, \"### ### ##0\") & \" h Backofen\"","v":{"$error":"#N/A"}}]
[]
[]
[]
[null,null,"THG-Emissionen in t CO2e",null,null,null,null,null,"Anteil Emissionen in %",null,null,null,null,null,null,null,null,null,"Primärenergiebedarffossil  in MWh",null,null,null,null,null,"Anteil PEBfossil  in %"]
[]
[null,null,null,null,{"$f":"'Kalk Ergebnisse'!C14","v":"Bestand"},{"$f":"'Kalk Ergebnisse'!D14","v":"Sanierung"},{"$f":"'Kalk Ergebnisse'!E14","v":"Neubau"},null,null,null,"Bestand","Sanierung","Neubau",null,null,null,null,null,null,null,"Bestand","Sanierung","Neubau",null,null,null,"Bestand","Sanierung","Neubau"]
[null,null,{"$f":"'Kalk Ergebnisse'!B15","v":"Bausubstanz"},null,{"$f":"'Kalk Ergebnisse'!C15","v":{"$error":"#N/A"}},{"$f":"'Kalk Ergebnisse'!D15","v":{"$error":"#N/A"}},{"$f":"'Kalk Ergebnisse'!E15","v":{"$error":"#N/A"}},null,"Bausubstanz",null,{"$f":"E36/$E$38","v":{"$error":"#N/A"}},{"$f":"F36/$F$38","v":{"$error":"#N/A"}},{"$f":"G36/$G$38","v":{"$error":"#N/A"}},null,null,null,null,null,"Bausubstanz",null,{"$f":"'Kalk Ergebnisse'!C27","v":{"$error":"#N/A"}},{"$f":"'Kalk Ergebnisse'!D27","v":{"$error":"#N/A"}},{"$f":"'Kalk Ergebnisse'!E27","v":{"$error":"#N/A"}},null,"Bausubstanz",null,{"$f":"U36/$U$38","v":{"$error":"#N/A"}},{"$f":"V36/$V$38","v":{"$error":"#N/A"}},{"$f":"W36/$W$38","v":{"$error":"#N/A"}}]
[null,null,"Wärme- und Stromversorgung",null,{"$f":"'Kalk Ergebnisse'!C16","v":0},{"$f":"'Kalk Ergebnisse'!D16","v":0},{"$f":"'Kalk Ergebnisse'!E16","v":0},null,"Wärme- und Stromversorgung",null,{"$f":"E37/$E$38","v":{"$error":"#N/A"}},{"$f":"F37/$F$38","v":{"$error":"#N/A"}},{"$f":"G37/$G$38","v":{"$error":"#N/A"}},null,null,null,null,null,"Wärme- und Stromversorgung",null,{"$f":"'Kalk Ergebnisse'!C28","v":0},{"$f":"'Kalk Ergebnisse'!D28","v":0},{"$f":"'Kalk Ergebnisse'!E28","v":0},null,"Wärme- und Stromversorgung",null,{"$f":"U37/$U$38","v":{"$error":"#N/A"}},{"$f":"V37/$V$38","v":{"$error":"#N/A"}},{"$f":"W37/$W$38","v":{"$error":"#N/A"}}]
[null,null,"Summe",null,{"$f":"SUM(E36:E37)","v":{"$error":"#N/A"}},{"$f":"SUM(F36:F37)","v":{"$error":"#N/A"}},{"$f":"SUM(G36:G37)","v":{"$error":"#N/A"}},null,"Summe",null,{"$f":"SUM(K36:K37)","v":{"$error":"#N/A"}},{"$f":"SUM(L36:L37)","v":{"$error":"#N/A"}},{"$f":"SUM(M36:M37)","v":{"$error":"#N/A"}},null,null,null,null,null,"Summe",null,{"$f":"SUM(U36:U37)","v":{"$error":"#N/A"}},{"$f":"SUM(V36:V37)","v":{"$error":"#N/A"}},{"$f":"SUM(W36:W37)","v":{"$error":"#N/A"}},null,"Summe",null,{"$f":"SUM(AA36:AA37)","v":{"$error":"#N/A"}},{"$f":"SUM(AB36:AB37)","v":{"$error":"#N/A"}},{"$f":"SUM(AC36:AC37)","v":{"$error":"#N/A"}}]
[]
[]
[]
[]
[]
[]
[]
[]
[]
[]
[]
[]
[]
[]
[]
[]
[]
[]
[]
[]
[]
[]
[null,null,{"$f":" \"* Für eine Nutzungsdauer von \" & Daten!G25 & \" Jahren\"","v":"* Für eine Nutzungsdauer von 30 Jahren"},null,null,null,null,null,null,{"$f":" \"* Für eine Nutzungsdauer von \" & Daten!G25 & \" Jahren\"","v":"* Für eine Nutzungsdauer von 30 Jahren"},null,null,null,null,null,null,null,null,{"$f":" \"* Für eine Nutzungsdauer von \" & Daten!G25 & \" Jahren\"","v":"* Für eine Nutzungsdauer von 30 Jahren"},null,null,null,null,null,null,{"$f":" \"* Für eine Nutzungsdauer von \" & Daten!G25 & \" Jahren\"","v":"* Für eine Nutzungsdauer von 30 Jahren"}]
[]
[]
[]
[null,"Weiterführende Informationen:"]
[null,"Dämmstoffbroschüre",null,"Die Dämmstoffbroschüre präsentiert alle gängigen Dämmstoffe. Dämmen ist sowohl beim Neubau als auch in der Sanierung ein wichtiges Thema für energieeffizientes Bauen."]
[null,"Baubook",null,"Baubook ist ein Web-Portal für Bauprodukte, Bauteile und Tools, das ökologisches und gesundes Bauen vereinfacht. Die Webplattform liefert validierte Baustoffdaten für die Berechnung von Energie- und Ökologiekennzahlen."]
[null,"klimaaktiv Gebäude Standard",null,"Der klimaaktiv Gebäudestandard ist österreichweit das bekannteste Bewertungssystem für die Nachhaltigkeit von Gebäuden mit besonderem Fokus auf Energieeffizienz, Klimaschutz und Ressourceneffizienz. Gebäude in klimaaktiv Qualität garantieren die Einhaltung hochwertiger Standards."]
[null,"Heizungsmatrix",null,"Mit der Heizungs-Matrix können Sie feststellen, welche Heizungssysteme für Ihr Haus empfehlenswert sind.\nBewegen Sie den Mauszeiger über die Tabelle, um bestimmte Spalten oder Zeilen auszuwählen und Informationen anzuzeigen!"]
[null,"Hexit",null,"klimaaktiveinen hat den Heizrechner \"Hexit\" (Heizöl exit) entwickelt, der neben einem Wirtschaftlichkeitsvergleich auch ökologische Faktoren in die Gesamtbetrachtung einfließen lässt."]
[null,"Raus aus Öl und Gas",null,"Die Förderungsaktion „raus aus Öl und Gas“ unterstützt Haushalte und Betriebe beim Kesseltausch und fördert so die Sanierungsoffensive des Bundes."]

{"sheet":"Parameter","index":3,"n_rows":45,"n_cols":10,"rows_kept":45,"cut":false,"hidden":false,"merged":[[1,1,1,10],[3,1,6,10],[28,1,28,10],[30,2,30,3],[30,4,30,5],[30,1,31,1],[8,1,8,10],[9,1,9,2],[10,2,10,3],[10,8,10,9],[10,4,10,5],[22,4,22,5],[44,1,45,6],[37,3,37,4],[37,5,37,6],[35,1,35,10],[20,1,20,10],[22,2,22,3],[37,1,38,1]]}
[]
[null,"Parameter-Anpassung"]
[]
[null,"In diesem Abschnitt können die Parameter zur Berechnung mit eigenen Werten angepasst werden, da es sich bei den Default-Werten um Standardwerte handelt. Die spezfisichen Daten für Ihr Gebäude können beispielsweise für die Materialzusammensetzung aus einem Berechnungstool (z.B. GEMIS) oder für das Energiesystem aus Ihrem  Energieausweis entnommen werden. Beim Klick auf die Schaltfläche \"Default Werte zurück setzen\" werden die Eingabe Felder auf die Default Werte zurück gesetzt."]
[]
[]
[]
[]
[null,"Parameter-Anpassung Bausubstanz [kg]"]
[]
[null,null,"Emissionsfaktor [kg CO2e/kg]",null,"PEB fossil [kWh/kg]",null,null,null,"Dichte [kg/m³]"]
[null,"Material","Eingabe","Default","Eingabe","Default",null,"Material","Eingabe","Default"]
[null,"Holz",{"$f":"D13","v":0.28499999999999998},{"$f":"'Kalk Bausubstanz'!I33","v":0.28499999999999998},{"$f":"F13","v":1.2805555555555557},{"$f":"'Kalk Bausubstanz'!I43","v":1.2805555555555557},null,"Holz",{"$f":"J13","v":529},{"$f":"'Kalk Bausubstanz'!M33","v":529}]
[null,"Ziegel",{"$f":"D14","v":0.23699999999999999},{"$f":"'Kalk Bausubstanz'!I34","v":0.23699999999999999},{"$f":"F14","v":1.1361111111111111},{"$f":"'Kalk Bausubstanz'!I44","v":1.1361111111111111},null,"Ziegel",{"$f":"J14","v":700},{"$f":"'Kalk Bausubstanz'!M34","v":700}]
[null,"Beton",8.9399999999999993E-2,{"$f":"'Kalk Bausubstanz'!I35","v":8.9399999999999993E-2},0.11888888888888888,{"$f":"'Kalk Bausubstanz'!I45","v":0.11888888888888888},null,"Beton",2400,{"$f":"'Kalk Bausubstanz'!M35","v":2400}]
[null,"Stahl",1,{"$f":"'Kalk Bausubstanz'!I36","v":1},4.166666666666667,{"$f":"'Kalk Bausubstanz'!I46","v":4.166666666666667},null,"Stahl",7900,{"$f":"'Kalk Bausubstanz'!M36","v":7900}]
[null,"Glas",1.1000000000000001,{"$f":"'Kalk Bausubstanz'!I37","v":1.1000000000000001},4.1944444444444446,{"$f":"'Kalk Bausubstanz'!I47","v":4.1944444444444446},null,"Glas",2500,{"$f":"'Kalk Bausubstanz'!M37","v":2500}]
[null,"Stahlbeton",0.13400000000000001,{"$f":"'Kalk Bausubstanz'!I38","v":0.13400000000000001},0.15611111111111112,{"$f":"'Kalk Bausubstanz'!I48","v":0.15611111111111112},null,"Stahlbeton",2400,{"$f":"'Kalk Bausubstanz'!M38","v":2400}]
[]
[]
[null,"Parameter-Anpassung Dämmung [kg]"]
[]
[null,null,"Emissionsfaktor [kg CO2e/m³]",null,"PEB fossil [kWh/m³]"]
[null,"Material","Eingabe","Default","Eingabe","Default"]
[null,"Standard Dämmung",{"$f":"D25","v":67},{"$f":"'Kalk Dämmung'!L18","v":67},{"$f":"F25","v":633.33333333333326},{"$f":"'Kalk Dämmung'!L25","v":633.33333333333326}]
[null,"Ökologische Dämmung ",{"$f":"D26","v":60.42},{"$f":"'Kalk Dämmung'!L19","v":60.42},{"$f":"F26","v":323},{"$f":"'Kalk Dämmung'!L26","v":323}]
[]
[]
[null,"Parameter-Anpassung Nutzungsphase Bestand"]
[]
[null,"Wärmebereitstellungssystem/\nPrimärenergiebedarf","Emissionen [kg CO2e/m² BGF] ",null,"PEB fossil [kWh/m² BGF]"]
[null,null,"Eingabe","Default","Eingabe","Default"]
[null,{"$f":"Daten!G16","v":"bitte auswählen"},{"$f":"D33","v":0},{"$f":"SUMIFS(W_Bestand[Emissionen  '[kgCO2/m²']],W_Bestand[Typ],Daten!G7,W_Bestand[Bauperiode],Daten!G10,W_Bestand[Heizsystem],Daten!G16)","v":0},{"$f":"F33","v":0},{"$f":"SUMIFS(W_Bestand[PEB fossil '[kWh/m²']],W_Bestand[Typ],Daten!G7,W_Bestand[Bauperiode],Daten!G10,W_Bestand[Heizsystem],Daten!G16)","v":0}]
[]
[]
[null,"Parameter-Anpassung Nutzungsphase Sanierung bzw. Neubau"]
[]
[null,"Wärmebereitstellungssystem/\nPrimärenergiebedarf",null,"Emissionen [kg CO2e/m² BGF] ",null,"PEB fossil [kWh/m² BGF]"]
[null,null,null,"Eingabe","Default","Eingabe","Default"]
[null,"Sanierung",{"$f":"Daten!G19","v":"bitte auswählen"},{"$f":"E40","v":0},{"$f":"SUMIFS(W_Neu[Emissionen  '[kgCO2/m²']],W_Neu[Typ],Daten!G7,W_Neu[Bauperiode],Daten!G10,W_Neu[Heizsystem],Daten!G19)","v":0},{"$f":"G40","v":0},{"$f":"SUMIFS(W_Neu[PEB fossil '[kWh/m²']],W_Neu[Typ],Daten!G7,W_Neu[Bauperiode],Daten!G10,W_Neu[Heizsystem],Daten!G19)","v":0}]
[null,"Neubau",{"$f":"Daten!G19","v":"bitte auswählen"},{"$f":"E41","v":0},{"$f":"SUMIFS(W_Neu[Emissionen  '[kgCO2/m²']],W_Neu[Typ],Daten!G7,W_Neu[Bauperiode],Listen!B9,W_Neu[Heizsystem],Daten!G19)","v":0},{"$f":"G41","v":0},{"$f":"SUMIFS(W_Neu[PEB fossil '[kWh/m²']],W_Neu[Typ],Daten!G7,W_Neu[Bauperiode],Listen!B9,W_Neu[Heizsystem],Daten!G19)","v":0}]
[]
[]
[]
[null,"Jetzt berechnen!"]

{"sheet":"Methodik","index":4,"n_rows":34,"n_cols":2,"rows_kept":34,"cut":false,"hidden":false,"merged":[[27,1,29,10],[33,1,63,10],[1,1,1,10],[3,1,3,10],[5,1,18,10],[31,1,31,10],[20,1,20,10],[22,1,23,10],[25,1,25,10]]}
[]
[null,"Methodik"]
[]
[null,"Hintergrund"]
[]
[null,"Sanierung oder Neubau? Betrachtet man ein Gebäude anhand seiner Energieeffizienz wird der Neubau der Sanierung oft vorgezogen. Aus ökologischer Sichtweise kann eine Sanierung allerdings durchwegs klimafreundlicher sein als der Abriss und Neubau des Gebäudes. Immerhin wurden durch den Bau des Gebäudes bereits Energie verbraucht und klimaschädlcihe Treibhausgas-Emissionen (CO2e) verursacht. Dieses Tool soll diese \"versteckten\" Verbräuche (ökologischer Rucksack) sichtbar machen um die Gebäude über ihren Lebensweg vergleichen zu können. Da es sich hierbei um Standardwerte handelt sollten die Ergebnisse jedoch als Abschätzung verstanden werden.\n\nIn diesem Tool wird der ökologische Rucksack mittels der CO2e-Emissionen und der grauen Energie des Gebäudes dargestellt. Als ökologischer Rucksack werden die gesamten Inputs bezeichnet, welche im Laufe des Lebensweges von Produkten und Materialien aufgewendet wird. Der Lebenszyklus eines Produktes oder Materials beinhaltet dabei die Prozesse der Rohstoffgewinnung, Herstellung, Verarbeitung, Instandhaltung, Entsorgung, und Transport. Treibhausgas-Emissionen beschreiben das gesamte Treibhausgaspotenzial einer Aktivität. Dies kann auf CO2-Äquivalente umgerechnet werden. Als graue Energie wird die gesamte Primärenergie bezeichnet, welche im Laufe des Lebensweges von Produkten und Materialien aufgewendet wird.  "]
[]
[]
[]
[]
[]
[]
[]
[]
[]
[]
[]
[]
[]
[]
[null,"Zielgruppe"]
[]
[null,"Zielgruppe dieses Tools sind vor allem Planer:innen und Entwickler:innen, sowie die interessierte Öffentlichkeit."]
[]
[]
[null,"Ziel"]
[]
[null,"Ziel ist es, die 'versteckten' Emissionen und die 'versteckte' Energie eines Gebäudes sichtbar zu machen um das Gebäude über den  Lebenszyklus vergleichen zu können. "]
[]
[]
[]
[null,"Methode"]
[]
[null,"\nDer Lebenszyklus der Gebäude umfasst die Herstellungsphase, die Nutzungsphase und die Entsorgungsphase (siehe Grafik unten, berücksichtigte Phasen in blau). Es werden die Materialien der Bausubstanz und der Dämmung über ihren Lebensweg berücksichtigt. Für einen besseren Vergleich wird die Nutzungsphase des Gebäudes mit dem jeweilig gewählten Heizsystem dargestellt. Grundlegend wurde angenommen, das die Größe des Gebäudes in der Sanierung und im Neubau unverändert bleibt. Zubauten werden damit nicht berücksichtigt. \n\nDie Gebäudetypen entsprechen den Standards der jeweiligen Bauperiode. Die Zusammensetzung der Bausubstanz beruht auf einer Berechnung der österreichischen Energieagentur nach dem österreichischen Gebäudestandard (Tabula). Die Bausubstanz umfasst Wände, Decken, Böden und Fenster. In Sanierung und Neubau wird zudem das Material für die Dämmung berücksichtigt. Bei der Standard Dämmung wurde EPS, bei der ökologischen Dämmung Hanf als Dämmmaterial zugrunde gelegt. Das Material für das Heizsystem (z.B. Kessel), die Haustechnik und die bauliche Veränderung der Sanierung (excl. Dämmung) befinden sich außerhalb der Systemgrenze. Damit wird auch die Änderung des Verteilsystems (z.B. bei Umstellung auf Wärmepumpe) aufgrund der vereinfachten Berechnung nicht berücksichtigt.\n\nZur besseren Einordnung wird auch die Betriebsenergie (rote Energie) aus der Nutzung des Gebäudes dargestellt. Die Nutzungsphase umfasst den gesamten Energiebedarf des Gebäudes (inkl. Strom). Hier wurden für die jeweiligen Gebäudetypen und Baujahre Energieausweise mit dem entsprechenden Heizungssystem berechnet. Hierbei handelt es sich um eine Abschätzung, da die tatsächlichen Energieverbräuche stark vom individuellen Nutzungsverhalten beeinflusst werden. Die Größen und Volumina der Gebäude basieren auf der österreichischen Gebäudetypologie. Die Daten für die Emissionen und den  Primärenergiebedarffossilfossil stammen aus diesen Energieausweisen. Als Berechnungstool wurde die Software ETU Gebäudeprofi Duo 3D mit Standard U-Werten verwendet. Für die Dämmung in Sanierung und Neubau wurden gängige Dämmstärken von ca. 20 cm angenommen. Fenster wurden um Isolierglas verstärkt. \n\nFür den Neubau wurde ein Gebäude der aktuellsten Bauperiode innerhalb der gewählten Gebäudekategorie angenommen.Für die Nutzungsdauer des Gebäudes (bis zur nächsten Sanierung) wurde der Standardwert auf 30 Jahre gesetzt, da dies als durchschnittliche Lebensdauer des gewählten Heizsystems angenommen wurde. Bei einer länger gewählten Nutzungsdauer wird das jeweilig gewählte Wärmebereitstellungssystem für Sanierung bzw. Neubau über die gesamte Nutzungsdauer angenommen. \n\nFür die Berechnung der Emissionen werden Emissionsfaktoren in kg CO2 Äquivalent (CO2e) für den Lebenszyklus des jeweiligen Produktes verwendet (CML Global Warming potential 100 years exckl. biogenic carbon). Bei der Berechnung der grauen Energie wurde der Primärenergiebedarf (PEB) aus fossilen Energieträgern herangezogen. Die Emissionsfaktoren und der Primärenergiebedarffossil der Materialien stammen aus der Ökobilanz-Software Gabi, und hier aus den Datenbanken ©Gabi Professional und ©ecoinvent. \n\n\n"]

{"sheet":"Kalk Ergebnisse","index":5,"n_rows":29,"n_cols":9,"rows_kept":29,"cut":false,"hidden":true,"merged":[[20,6,20,8],[3,1,3,2],[4,1,4,2],[8,6,8,8],[1,1,1,8],[6,1,6,8],[18,1,18,8]]}
[]
[null,"Kalkulation Ergebnisse"]
[]
[null,"Nutzungsdauer",null,{"$f":"Daten!G25","v":30}]
[null,"BGF",null,{"$f":"Daten!G13","v":0}]
[]
[null,"Kalkulation Emissionen [t CO2e]"]
[]
[null,null,"Bestand","Sanierung","Neubau",null,"Überprüfung Einzelwerte [kg CO2]"]
[null,"Bausubstanz:",{"$f":"(INDEX('Kalk Bausubstanz'!$C$34:$E$38, MATCH(Daten!G10,'Kalk Bausubstanz'!B34:B38,0), MATCH(Daten!G7,'Kalk Bausubstanz'!C33:E33,0))*'Kalk Ergebnisse'!D5)/1000","v":{"$error":"#N/A"}},{"$f":"C10","v":{"$error":"#N/A"}},{"$f":"C10+(INDEX('Kalk Bausubstanz'!C34:E38,MATCH('Kalk Bausubstanz'!B38,'Kalk Bausubstanz'!B34:B38,0),MATCH(Daten!G7,'Kalk Bausubstanz'!C33:E33,0))*'Kalk Ergebnisse'!D5)/1000","v":{"$error":"#N/A"}},null,{"$f":"C10/D5*1000","v":{"$error":"#N/A"}},null,{"$f":"(E10-C10)/D5*1000","v":{"$error":"#N/A"}}]
[null,"Dämmung:",0,{"$f":"(SUMIFS('Kalk Dämmung'!E18:E20,'Kalk Dämmung'!B18:B20,Daten!G7)*SUMIFS('Kalk Dämmung'!K18:K19,'Kalk Dämmung'!I18:I19,Daten!G22)*D5)/1000","v":0},{"$f":"D11","v":0},null,null,{"$f":"(D11/D5)/SUMIFS('Kalk Dämmung'!E18:E20,'Kalk Dämmung'!B18:B20,Daten!G7)*1000","v":{"$error":"#DIV/0!"}}]
[null,"Nutzungsphase:",{"$f":"(Parameter!C33*D5*D4)/1000","v":0},{"$f":"(Parameter!D40*D5*D4)/1000","v":0},{"$f":"(Parameter!D41*D5*D4)/1000","v":0},null,{"$f":"C12/$D$5/$D$4*1000","v":{"$error":"#DIV/0!"}},{"$f":"D12/$D$5/$D$4*1000","v":{"$error":"#DIV/0!"}},{"$f":"E12/$D$5/$D$4*1000","v":{"$error":"#DIV/0!"}}]
[]
[null,null,"Bestand","Sanierung","Neubau",null,null,"Sanierung","Neubau"]
[null,"Bausubstanz",{"$f":"(C10+C11)","v":{"$error":"#N/A"}},{"$f":"(D10+D11)","v":{"$error":"#N/A"}},{"$f":"(E10+E11)","v":{"$error":"#N/A"}},null,"Bausubstanz",{"$f":"D15","v":{"$error":"#N/A"}},{"$f":"E15","v":{"$error":"#N/A"}}]
[null,"Nutzungsphase",{"$f":"C12","v":0},{"$f":"D12","v":0},{"$f":"E12","v":0},null,"Nutzungsphase",{"$f":"D16","v":0},{"$f":"E16","v":0}]
[null,null,null,null,null,null,"Summe",{"$f":"SUM(H15:H16)","v":{"$error":"#N/A"}},{"$f":"SUM(I15:I16)","v":{"$error":"#N/A"}}]
[]
[null,"Kalkulation PEB fossil [MWh]"]
[]
[null,null,"Bestand","Sanierung","Neubau",null,"Überprüfung Einzelwerte [kWh]"]
[null,"Bausubstanz:",{"$f":"(INDEX('Kalk Bausubstanz'!C44:E48, MATCH(Daten!G10,'Kalk Bausubstanz'!B44:B48,0), MATCH(Daten!G7,'Kalk Bausubstanz'!C43:E43,0))*'Kalk Ergebnisse'!D5)/1000","v":{"$error":"#N/A"}},{"$f":"C22","v":{"$error":"#N/A"}},{"$f":"C22+(INDEX('Kalk Bausubstanz'!C44:E48,MATCH('Kalk Bausubstanz'!B48,'Kalk Bausubstanz'!B44:B48,0),MATCH(Daten!G7,'Kalk Bausubstanz'!C43:E43,0))*'Kalk Ergebnisse'!D5)/1000","v":{"$error":"#N/A"}},null,{"$f":"C22/D5*1000","v":{"$error":"#N/A"}},null,{"$f":"(E22-C22)/D5*1000","v":{"$error":"#N/A"}}]
[null,"Dämmung:",0,{"$f":"(SUMIFS('Kalk Dämmung'!E18:E20,'Kalk Dämmung'!B18:B20,Daten!G7)*SUMIFS('Kalk Dämmung'!K25:K26,'Kalk Dämmung'!I25:I26,Daten!G22)*D5)/1000","v":0},{"$f":"D23","v":0},null,null,{"$f":"D23/D5/SUMIFS('Kalk Dämmung'!E18:E20,'Kalk Dämmung'!B18:B20,Daten!G7)*1000","v":{"$error":"#DIV/0!"}}]
[null,"Nutzungsphase:",{"$f":"Parameter!E33*D5*D4/1000","v":0},{"$f":"Parameter!F40*D5*D4/1000","v":0},{"$f":"Parameter!F41*D5*D4/1000","v":0},null,{"$f":"C24/$D$5/$D$4*1000","v":{"$error":"#DIV/0!"}},{"$f":"D24/$D$5/$D$4*1000","v":{"$error":"#DIV/0!"}},{"$f":"E24/$D$5/$D$4*1000","v":{"$error":"#DIV/0!"}}]
[]
[null,null,"Bestand","Sanierung","Neubau",null,null,"Sanierung","Neubau"]
[null,"Bausubstanz",{"$f":"(C22+C23)","v":{"$error":"#N/A"}},{"$f":"(D22+D23)","v":{"$error":"#N/A"}},{"$f":"(E22+E23)","v":{"$error":"#N/A"}},null,"Bausubstanz",{"$f":"D27","v":{"$error":"#N/A"}},{"$f":"E27","v":{"$error":"#N/A"}}]
[null,"Nutzungsphase",{"$f":"C24","v":0},{"$f":"D24","v":0},{"$f":"E24","v":0},null,"Nutzungsphase",{"$f":"D28","v":0},{"$f":"E28","v":0}]
[null,null,null,null,null,null,"Summe",{"$f":"SUM(H27:H28)","v":{"$error":"#N/A"}},{"$f":"SUM(I27:I28)","v":{"$error":"#N/A"}}]

{"sheet":"Kalk Nutz_Bestand","index":6,"n_rows":110,"n_cols":7,"rows_kept":110,"cut":false,"hidden":true,"merged":[[1,1,1,6]]}
[]
[null,"Kalkulation Nutzungsphase Bestand je m² BGF"]
[]
[]
[null,"Kürzel","Typ","Bauperiode","Heizsystem","Emissionen  [kgCO2/m²]","PEB fossil [kWh/m²]"]
[null,"EFH","Wohngebäude mit 1-2 Nutzeinheiten","1919-1944","Erdgas ",100.401,496.8]
[null,"EFH","Wohngebäude mit 1-2 Nutzeinheiten","1919-1944","Erdgas Brennwert ",95.658000000000001,473.3]
[null,"EFH","Wohngebäude mit 1-2 Nutzeinheiten","1919-1944","Heizöl ",135.92599999999999,543.79999999999995]
[null,"EFH","Wohngebäude mit 1-2 Nutzeinheiten","1919-1944","Holz ",10.443,67.900000000000006]
[null,"EFH","Wohngebäude mit 1-2 Nutzeinheiten","1919-1944","Fernwärme Erneuerbar",22.045000000000002,117.7]
[null,"EFH","Wohngebäude mit 1-2 Nutzeinheiten","1919-1944","Fernwärme Österreich-Mix",{"$f":"0.5*22.045+0.5*103.822","v":62.933500000000002},{"$f":"0.5*117.7+0.5*492.5","v":305.10000000000002}]
[null,"EFH","Wohngebäude mit 1-2 Nutzeinheiten","1919-1944","Wärmepumpe ",47.692,228.1]
[null,"EFH","Wohngebäude mit 1-2 Nutzeinheiten","1945-1960","Erdgas ",111.464,551.70000000000005]
[null,"EFH","Wohngebäude mit 1-2 Nutzeinheiten","1945-1960","Erdgas Brennwert ",106.22199999999999,525.70000000000005]
[null,"EFH","Wohngebäude mit 1-2 Nutzeinheiten","1945-1960","Heizöl ",150.16999999999999,599.29999999999995]
[null,"EFH","Wohngebäude mit 1-2 Nutzeinheiten","1945-1960","Holz ",8.8680000000000003,62]
[null,"EFH","Wohngebäude mit 1-2 Nutzeinheiten","1945-1960","Fernwärme Erneuerbar",24.152000000000001,129.30000000000001]
[null,"EFH","Wohngebäude mit 1-2 Nutzeinheiten","1945-1960","Fernwärme Österreich-Mix",{"$f":"0.5*24.152+0.5*115.767","v":69.959499999999991},{"$f":"0.5*129.3+0.5*549.2","v":339.25}]
[null,"EFH","Wohngebäude mit 1-2 Nutzeinheiten","1945-1960","Wärmepumpe ",52.765999999999998,252.4]
[null,"EFH","Wohngebäude mit 1-2 Nutzeinheiten","1961-1990","Erdgas ",81.665999999999997,404]
[null,"EFH","Wohngebäude mit 1-2 Nutzeinheiten","1961-1990","Erdgas Brennwert ",77.777000000000001,384.7]
[null,"EFH","Wohngebäude mit 1-2 Nutzeinheiten","1961-1990","Heizöl ",110.42100000000001,442.5]
[null,"EFH","Wohngebäude mit 1-2 Nutzeinheiten","1961-1990","Holz ",9.3149999999999995,59]
[null,"EFH","Wohngebäude mit 1-2 Nutzeinheiten","1961-1990","Fernwärme Erneuerbar",18.542999999999999,98.5]
[null,"EFH","Wohngebäude mit 1-2 Nutzeinheiten","1961-1990","Fernwärme Österreich-Mix",{"$f":"0.5*18.543+0.5*83.966","v":51.254499999999993},{"$f":"0.5*98.5+0.5*398.4","v":248.45}]
[null,"EFH","Wohngebäude mit 1-2 Nutzeinheiten","1961-1990","Wärmepumpe ",{"$f":"AVERAGE(12.788, 10.607)","v":11.6975},{"$f":"AVERAGE(61.2, 50.7)","v":55.95}]
[null,"EFH","Wohngebäude mit 1-2 Nutzeinheiten","ab 1991","Erdgas ",38.162999999999997,188.3]
[null,"EFH","Wohngebäude mit 1-2 Nutzeinheiten","ab 1991","Erdgas Brennwert ",36.366,179.4]
[null,"EFH","Wohngebäude mit 1-2 Nutzeinheiten","ab 1991","Heizöl ",50.201000000000001,203.3]
[null,"EFH","Wohngebäude mit 1-2 Nutzeinheiten","ab 1991","Holz ",6.7770000000000001,38.6]
[null,"EFH","Wohngebäude mit 1-2 Nutzeinheiten","ab 1991","Fernwärme Erneuerbar",10.778,55.9]
[null,"EFH","Wohngebäude mit 1-2 Nutzeinheiten","ab 1991","Fernwärme Österreich-Mix",{"$f":"0.5*10.778+0.5*39.909","v":25.343499999999999},{"$f":"0.5*55.9+0.5*189.4","v":122.65}]
[null,"EFH","Wohngebäude mit 1-2 Nutzeinheiten","ab 1991","Wärmepumpe ",17.858000000000001,85.4]
[null,"EFH","Wohngebäude mit 1-2 Nutzeinheiten","bis 1918","Erdgas ",100.401,496.8]
[null,"EFH","Wohngebäude mit 1-2 Nutzeinheiten","bis 1918","Erdgas Brennwert ",95.658000000000001,473.3]
[null,"EFH","Wohngebäude mit 1-2 Nutzeinheiten","bis 1918","Heizöl ",135.92599999999999,543.79999999999995]
[null,"EFH","Wohngebäude mit 1-2 Nutzeinheiten","bis 1918","Holz ",10.443,67.900000000000006]
[null,"EFH","Wohngebäude mit 1-2 Nutzeinheiten","bis 1918","Fernwärme Erneuerbar",22.045000000000002,117.7]
[null,"EFH","Wohngebäude mit 1-2 Nutzeinheiten","bis 1918","Fernwärme Österreich-Mix",{"$f":"0.5*22.045+0.5*103.822","v":62.933500000000002},{"$f":"0.5*117.7+0.5*492.5","v":305.10000000000002}]
[null,"EFH","Wohngebäude mit 1-2 Nutzeinheiten","bis 1918","Wärmepumpe ",47.692,228.1]
[null,"MFH","Wohngebäude mit 3-9 Nutzeinheiten","1919-1944","Erdgas ",86.590999999999994,428.4]
[null,"MFH","Wohngebäude mit 3-9 Nutzeinheiten","1919-1944","Erdgas Brennwert ",82.701999999999998,409.1]
[null,"MFH","Wohngebäude mit 3-9 Nutzeinheiten","1919-1944","Heizöl ",116.971,468.6]
[null,"MFH","Wohngebäude mit 3-9 Nutzeinheiten","1919-1944","Holz ",8.0180000000000007,53.5]
[null,"MFH","Wohngebäude mit 3-9 Nutzeinheiten","1919-1944","Fernwärme Erneuerbar",12.954000000000001,78.400000000000006]
[null,"MFH","Wohngebäude mit 3-9 Nutzeinheiten","1919-1944","Fernwärme Österreich-Mix",{"$f":"0.5*12.954+0.5*90.735","v":51.844499999999996},{"$f":"0.5*78.4+0.5*430.5","v":254.45}]
[null,"MFH","Wohngebäude mit 3-9 Nutzeinheiten","1919-1944","Wärmepumpe ",45,215.2]
[null,"MFH","Wohngebäude mit 3-9 Nutzeinheiten","1945-1960","Erdgas ",86.590999999999994,428.4]
[null,"MFH","Wohngebäude mit 3-9 Nutzeinheiten","1945-1960","Erdgas Brennwert ",82.701999999999998,409.1]
[null,"MFH","Wohngebäude mit 3-9 Nutzeinheiten","1945-1960","Heizöl ",116.971,468.6]
[null,"MFH","Wohngebäude mit 3-9 Nutzeinheiten","1945-1960","Holz ",8.0180000000000007,53.5]
[null,"MFH","Wohngebäude mit 3-9 Nutzeinheiten","1945-1960","Fernwärme Erneuerbar",12.954000000000001,78.400000000000006]
[null,"MFH","Wohngebäude mit 3-9 Nutzeinheiten","1945-1960","Fernwärme Österreich-Mix",{"$f":"0.5*12.954+0.5*90.735","v":51.844499999999996},{"$f":"0.5*78.4+0.5*430.5","v":254.45}]
[null,"MFH","Wohngebäude mit 3-9 Nutzeinheiten","1945-1960","Wärmepumpe ",45,215.2]
[null,"MFH","Wohngebäude mit 3-9 Nutzeinheiten","1961-1990","Erdgas ",92.533000000000001,457.9]
[null,"MFH","Wohngebäude mit 3-9 Nutzeinheiten","1961-1990","Erdgas Brennwert ",88.382999999999996,437.3]
[null,"MFH","Wohngebäude mit 3-9 Nutzeinheiten","1961-1990","Heizöl ",124.35299999999999,497]
[null,"MFH","Wohngebäude mit 3-9 Nutzeinheiten","1961-1990","Holz ",8.2590000000000003,55.8]
[null,"MFH","Wohngebäude mit 3-9 Nutzeinheiten","1961-1990","Fernwärme Erneuerbar",13.585000000000001,82.6]
[null,"MFH","Wohngebäude mit 3-9 Nutzeinheiten","1961-1990","Fernwärme Österreich-Mix",{"$f":"0.5*13.585+0.5*97.289","v":55.436999999999998},{"$f":"0.5*82.6+0.5*461.6","v":272.10000000000002}]
[null,"MFH","Wohngebäude mit 3-9 Nutzeinheiten","1961-1990","Wärmepumpe ",44.298999999999999,211.9]
[null,"MFH","Wohngebäude mit 3-9 Nutzeinheiten","ab 1991","Erdgas ",78.882999999999996,390.1]
[null,"MFH","Wohngebäude mit 3-9 Nutzeinheiten","ab 1991","Erdgas Brennwert ",75.218000000000004,372]
[null,"MFH","Wohngebäude mit 3-9 Nutzeinheiten","ab 1991","Heizöl ",105.44,422.1]
[null,"MFH","Wohngebäude mit 3-9 Nutzeinheiten","ab 1991","Holz ",9.3620000000000001,58.6]
[null,"MFH","Wohngebäude mit 3-9 Nutzeinheiten","ab 1991","Fernwärme Erneuerbar",12.223000000000001,73.2]
[null,"MFH","Wohngebäude mit 3-9 Nutzeinheiten","ab 1991","Fernwärme Österreich-Mix",{"$f":"0.5*12.223+0.5*81.36","v":46.791499999999999},{"$f":"0.5*73.2+0.5*386","v":229.6}]
[null,"MFH","Wohngebäude mit 3-9 Nutzeinheiten","ab 1991","Wärmepumpe ",34.719000000000001,166]
[null,"MFH","Wohngebäude mit 3-9 Nutzeinheiten","bis 1918","Erdgas ",76.858000000000004,380.2]
[null,"MFH","Wohngebäude mit 3-9 Nutzeinheiten","bis 1918","Erdgas Brennwert ",73.373999999999995,362.9]
[null,"MFH","Wohngebäude mit 3-9 Nutzeinheiten","bis 1918","Heizöl ",102.898,412]
[null,"MFH","Wohngebäude mit 3-9 Nutzeinheiten","bis 1918","Holz ",9.1430000000000007,57.2]
[null,"MFH","Wohngebäude mit 3-9 Nutzeinheiten","bis 1918","Fernwärme Erneuerbar",12.02,72]
[null,"MFH","Wohngebäude mit 3-9 Nutzeinheiten","bis 1918","Fernwärme Österreich-Mix",{"$f":"0.5*12.02+0.5*80.227","v":46.1235},{"$f":"0.5*72+0.5*380.7","v":226.35}]
[null,"MFH","Wohngebäude mit 3-9 Nutzeinheiten","bis 1918","Wärmepumpe ",36.966000000000001,176.8]
[null,"MWB","Wohngebäude mit 10+ Nutzeinheiten","1919-1944","Erdgas ",73.260000000000005,362.3]
[null,"MWB","Wohngebäude mit 10+ Nutzeinheiten","1919-1944","Erdgas Brennwert ",70.099000000000004,346.7]
[null,"MWB","Wohngebäude mit 10+ Nutzeinheiten","1919-1944","Heizöl ",97.182000000000002,389.2]
[null,"MWB","Wohngebäude mit 10+ Nutzeinheiten","1919-1944","Holz ",7.41,47.8]
[null,"MWB","Wohngebäude mit 10+ Nutzeinheiten","1919-1944","Fernwärme Erneuerbar",11.771000000000001,70.5]
[null,"MWB","Wohngebäude mit 10+ Nutzeinheiten","1919-1944","Fernwärme Österreich-Mix",{"$f":"0.5*11.771+0.5*79.435","v":45.603000000000002},{"$f":"0.5*70.5+0.5*376.9","v":223.7}]
[null,"MWB","Wohngebäude mit 10+ Nutzeinheiten","1919-1944","Wärmepumpe ",{"$f":"36.55","v":36.549999999999997},174.8]
[null,"MWB","Wohngebäude mit 10+ Nutzeinheiten","1945-1960","Erdgas ",74.537999999999997,368.7]
[null,"MWB","Wohngebäude mit 10+ Nutzeinheiten","1945-1960","Erdgas Brennwert ",71.436999999999998,353.3]
[null,"MWB","Wohngebäude mit 10+ Nutzeinheiten","1945-1960","Heizöl ",98.709000000000003,395.3]
[null,"MWB","Wohngebäude mit 10+ Nutzeinheiten","1945-1960","Holz ",7.4039999999999999,47.8]
[null,"MWB","Wohngebäude mit 10+ Nutzeinheiten","1945-1960","Fernwärme Erneuerbar",11.967000000000001,71.900000000000006]
[null,"MWB","Wohngebäude mit 10+ Nutzeinheiten","1945-1960","Fernwärme Österreich-Mix",46.396499999999996,228.7]
[null,"MWB","Wohngebäude mit 10+ Nutzeinheiten","1945-1960","Wärmepumpe ",37.101999999999997,177.4]
[null,"MWB","Wohngebäude mit 10+ Nutzeinheiten","1961-1990","Erdgas ",64.739000000000004,320.10000000000002]
[null,"MWB","Wohngebäude mit 10+ Nutzeinheiten","1961-1990","Erdgas Brennwert ",61.932000000000002,306.2]
[null,"MWB","Wohngebäude mit 10+ Nutzeinheiten","1961-1990","Heizöl ",86.159000000000006,346.1]
[null,"MWB","Wohngebäude mit 10+ Nutzeinheiten","1961-1990","Holz ",7.0720000000000001,44.6]
[null,"MWB","Wohngebäude mit 10+ Nutzeinheiten","1961-1990","Fernwärme Erneuerbar",10.87,64.400000000000006]
[null,"MWB","Wohngebäude mit 10+ Nutzeinheiten","1961-1990","Fernwärme Österreich-Mix",40.4955,198.55]
[null,"MWB","Wohngebäude mit 10+ Nutzeinheiten","1961-1990","Wärmepumpe ",32.606999999999999,155.9]
[null,"MWB","Wohngebäude mit 10+ Nutzeinheiten","ab 1991","Erdgas ",22.173999999999999,109.1]
[null,"MWB","Wohngebäude mit 10+ Nutzeinheiten","ab 1991","Erdgas Brennwert ",21.745000000000001,107]
[null,"MWB","Wohngebäude mit 10+ Nutzeinheiten","ab 1991","Heizöl ",28.821999999999999,118.2]
[null,"MWB","Wohngebäude mit 10+ Nutzeinheiten","ab 1991","Holz ",5.4429999999999996,29.2]
[null,"MWB","Wohngebäude mit 10+ Nutzeinheiten","ab 1991","Fernwärme Erneuerbar",8.0239999999999991,40.799999999999997]
[null,"MWB","Wohngebäude mit 10+ Nutzeinheiten","ab 1991","Fernwärme Österreich-Mix",16.002500000000001,77.349999999999994]
[null,"MWB","Wohngebäude mit 10+ Nutzeinheiten","ab 1991","Wärmepumpe ",11.68,55.9]
[null,"MWB","Wohngebäude mit 10+ Nutzeinheiten","bis 1918","Erdgas ",66.534000000000006,329]
[null,"MWB","Wohngebäude mit 10+ Nutzeinheiten","bis 1918","Erdgas Brennwert ",63.747999999999998,315.2]
[null,"MWB","Wohngebäude mit 10+ Nutzeinheiten","bis 1918","Heizöl ",87.885999999999996,352.4]
[null,"MWB","Wohngebäude mit 10+ Nutzeinheiten","bis 1918","Holz ",7.09,44.9]
[null,"MWB","Wohngebäude mit 10+ Nutzeinheiten","bis 1918","Fernwärme Erneuerbar",11.121,66.2]
[null,"MWB","Wohngebäude mit 10+ Nutzeinheiten","bis 1918","Fernwärme Österreich-Mix",{"$f":"0.5*11.121+0.5*72.083","v":41.601999999999997},{"$f":"0.5*66.2+0.5*342","v":204.1}]
[null,"MWB","Wohngebäude mit 10+ Nutzeinheiten","bis 1918","Wärmepumpe ",33.389000000000003,159.69999999999999]

{"sheet":"Kalk Nutz_Neu","index":7,"n_rows":65,"n_cols":7,"rows_kept":65,"cut":false,"hidden":true,"merged":[[1,1,1,6]]}
[]
[null,"Kalkulation Nutzungsphase Neu je m² BGF"]
[]
[]
[null,"Kürzel","Typ","Bauperiode","Heizsystem","Emissionen  [kgCO2/m²]","PEB fossil [kWh/m²]"]
[null,"EFH","Wohngebäude mit 1-2 Nutzeinheiten","bis 1918","Fernwärme Erneuerbar",8.2309999999999999,41.8]
[null,"EFH","Wohngebäude mit 1-2 Nutzeinheiten","bis 1918","Fernwärme Österreich-Mix",{"$f":"0.5*8.231+0.5*25.268","v":16.749500000000001},{"$f":"0.5*42.8+0.5*120","v":81.400000000000006}]
[null,"EFH","Wohngebäude mit 1-2 Nutzeinheiten","bis 1918","Holz ",6.01,32.4]
[null,"EFH","Wohngebäude mit 1-2 Nutzeinheiten","bis 1918","Wärmepumpe",{"$f":"AVERAGE(12.901,11.688)","v":12.294499999999999},{"$f":"AVERAGE(61.7,51.1)","v":56.400000000000006}]
[null,"EFH","Wohngebäude mit 1-2 Nutzeinheiten","1945-1960","Fernwärme Erneuerbar",8.2750000000000004,42.2]
[null,"EFH","Wohngebäude mit 1-2 Nutzeinheiten","1945-1960","Fernwärme Österreich-Mix",{"$f":"0.5*8.275+0.5*25.617","v":16.946000000000002},{"$f":"0.5*42.2+0.5*121.7","v":81.95}]
[null,"EFH","Wohngebäude mit 1-2 Nutzeinheiten","1945-1960","Holz ",5.5830000000000002,30.4]
[null,"EFH","Wohngebäude mit 1-2 Nutzeinheiten","1945-1960","Wärmepumpe",{"$f":"AVERAGE(13.028, 10.778)","v":11.903},{"$f":"AVERAGE(62.3, 51.5)","v":56.9}]
[null,"EFH","Wohngebäude mit 1-2 Nutzeinheiten","1961-1990","Fernwärme Erneuerbar",8.1579999999999995,41.5]
[null,"EFH","Wohngebäude mit 1-2 Nutzeinheiten","1961-1990","Fernwärme Österreich-Mix",{"$f":"0.5*8.158+0.5*24.955","v":16.5565},{"$f":"0.5*41.5+0.5*118.5","v":80}]
[null,"EFH","Wohngebäude mit 1-2 Nutzeinheiten","1961-1990","Holz ",5.9939999999999998,32.299999999999997]
[null,"EFH","Wohngebäude mit 1-2 Nutzeinheiten","1961-1990","Wärmepumpe",{"$f":"AVERAGE(12.788,10.607)","v":11.6975},{"$f":"AVERAGE(61.2,50.7)","v":55.95}]
[null,"EFH","Wohngebäude mit 1-2 Nutzeinheiten","1919-1944","Fernwärme Erneuerbar",8.2129999999999992,41.8]
[null,"EFH","Wohngebäude mit 1-2 Nutzeinheiten","1919-1944","Fernwärme Österreich-Mix",{"$f":"0.5*8.213+0.5*25.268","v":16.740500000000001},{"$f":"0.5*41.8+0.5*120","v":80.900000000000006}]
[null,"EFH","Wohngebäude mit 1-2 Nutzeinheiten","1919-1944","Holz ",6.01,32.4]
[null,"EFH","Wohngebäude mit 1-2 Nutzeinheiten","1919-1944","Wärmepumpe",47.692,228.1]
[null,"EFH","Wohngebäude mit 1-2 Nutzeinheiten","ab 1991","Fernwärme Erneuerbar",7.9109999999999996,40.200000000000003]
[null,"EFH","Wohngebäude mit 1-2 Nutzeinheiten","ab 1991","Fernwärme Österreich-Mix",{"$f":"0.5*7.911+0.5*23.563","v":15.736999999999998},{"$f":"0.5+40.2+0.5*111.9","v":96.65}]
[null,"EFH","Wohngebäude mit 1-2 Nutzeinheiten","ab 1991","Holz ",5.5350000000000001,29.8]
[null,"EFH","Wohngebäude mit 1-2 Nutzeinheiten","ab 1991","Wärmepumpe",{"$f":"AVERAGE(10.274, 11.129)","v":10.701499999999999},{"$f":"AVERAGE(49.1,53.2)","v":51.150000000000006}]
[null,"MFH","Wohngebäude mit 3-9 Nutzeinheiten","bis 1918","Fernwärme Erneuerbar",6.7279999999999998,36.200000000000003]
[null,"MFH","Wohngebäude mit 3-9 Nutzeinheiten","bis 1918","Fernwärme Österreich-Mix",{"$f":"0.5*6.728+0.5*25.63","v":16.178999999999998},{"$f":"0.5*36.2+0.5*121.7","v":78.95}]
[null,"MFH","Wohngebäude mit 3-9 Nutzeinheiten","bis 1918","Holz ",5.6420000000000003,30.5]
[null,"MFH","Wohngebäude mit 3-9 Nutzeinheiten","bis 1918","Wärmepumpe",12.282,58.7]
[null,"MFH","Wohngebäude mit 3-9 Nutzeinheiten","1945-1960","Fernwärme Erneuerbar",6.7009999999999996,36]
[null,"MFH","Wohngebäude mit 3-9 Nutzeinheiten","1945-1960","Fernwärme Österreich-Mix",{"$f":"0.5*6.701+0.5*25.351","v":16.026},{"$f":"0.5*36+0.5*120.4","v":78.2}]
[null,"MFH","Wohngebäude mit 3-9 Nutzeinheiten","1945-1960","Holz ",5.63,30.4]
[null,"MFH","Wohngebäude mit 3-9 Nutzeinheiten","1945-1960","Wärmepumpe",12.21,58.4]
[null,"MFH","Wohngebäude mit 3-9 Nutzeinheiten","1961-1990","Fernwärme Erneuerbar",6.694,36]
[null,"MFH","Wohngebäude mit 3-9 Nutzeinheiten","1961-1990","Fernwärme Österreich-Mix",{"$f":"0.5*6.694+0.5*25.279","v":15.986499999999999},{"$f":"0.5*36+0.5*120.1","v":78.05}]
[null,"MFH","Wohngebäude mit 3-9 Nutzeinheiten","1961-1990","Holz ",5.6280000000000001,30.4]
[null,"MFH","Wohngebäude mit 3-9 Nutzeinheiten","1961-1990","Wärmepumpe",12.183,58.3]
[null,"MFH","Wohngebäude mit 3-9 Nutzeinheiten","1919-1944","Fernwärme Erneuerbar",6.7009999999999996,36]
[null,"MFH","Wohngebäude mit 3-9 Nutzeinheiten","1919-1944","Fernwärme Österreich-Mix",{"$f":"0.5*6.701+0.5*25.351","v":16.026},{"$f":"0.5*36+0.5*120.4","v":78.2}]
[null,"MFH","Wohngebäude mit 3-9 Nutzeinheiten","1919-1944","Holz ",5.63,30.4]
[null,"MFH","Wohngebäude mit 3-9 Nutzeinheiten","1919-1944","Wärmepumpe",12.21,58.4]
[null,"MFH","Wohngebäude mit 3-9 Nutzeinheiten","ab 1991","Fernwärme Erneuerbar",6.968,37.700000000000003]
[null,"MFH","Wohngebäude mit 3-9 Nutzeinheiten","ab 1991","Fernwärme Österreich-Mix",{"$f":"0.5*6.968+0.5*26.726","v":16.847000000000001},{"$f":"0.5*37.7+0.5*126.9","v":82.300000000000011}]
[null,"MFH","Wohngebäude mit 3-9 Nutzeinheiten","ab 1991","Holz ",5.82,31.6]
[null,"MFH","Wohngebäude mit 3-9 Nutzeinheiten","ab 1991","Wärmepumpe",13.055,62.4]
[null,"MWB","Wohngebäude mit 10+ Nutzeinheiten","bis 1918","Fernwärme Erneuerbar",7.8970000000000002,40.1]
[null,"MWB","Wohngebäude mit 10+ Nutzeinheiten","bis 1918","Fernwärme Österreich-Mix",{"$f":"0.5*7.897+0.5*23.363","v":15.629999999999999},{"$f":"0.5*40.1+0.5*111","v":75.55}]
[null,"MWB","Wohngebäude mit 10+ Nutzeinheiten","bis 1918","Holz ",5.3869999999999996,28.8]
[null,"MWB","Wohngebäude mit 10+ Nutzeinheiten","bis 1918","Wärmepumpe",11.292999999999999,54]
[null,"MWB","Wohngebäude mit 10+ Nutzeinheiten","1945-1960","Fernwärme Erneuerbar",6.4329999999999998,34.4]
[null,"MWB","Wohngebäude mit 10+ Nutzeinheiten","1945-1960","Fernwärme Österreich-Mix",14.410500000000001,70.400000000000006]
[null,"MWB","Wohngebäude mit 10+ Nutzeinheiten","1945-1960","Holz ",5.3929999999999998,28.9]
[null,"MWB","Wohngebäude mit 10+ Nutzeinheiten","1945-1960","Wärmepumpe",10.586500000000001,50.65]
[null,"MWB","Wohngebäude mit 10+ Nutzeinheiten","1961-1990","Fernwärme Erneuerbar",6.5549999999999997,35.200000000000003]
[null,"MWB","Wohngebäude mit 10+ Nutzeinheiten","1961-1990","Fernwärme Österreich-Mix",15.031000000000001,73.45]
[null,"MWB","Wohngebäude mit 10+ Nutzeinheiten","1961-1990","Holz ",5.4669999999999996,29.4]
[null,"MWB","Wohngebäude mit 10+ Nutzeinheiten","1961-1990","Wärmepumpe",10.975999999999999,52.5]
[null,"MWB","Wohngebäude mit 10+ Nutzeinheiten","1919-1944","Fernwärme Erneuerbar",6.5659999999999998,35.299999999999997]
[null,"MWB","Wohngebäude mit 10+ Nutzeinheiten","1919-1944","Fernwärme Österreich-Mix",{"$f":"0.5*6.566+0.5*23.632","v":15.099},{"$f":"0.5*35.3+0.5*112.3","v":73.8}]
[null,"MWB","Wohngebäude mit 10+ Nutzeinheiten","1919-1944","Holz ",5.4710000000000001,29.5]
[null,"MWB","Wohngebäude mit 10+ Nutzeinheiten","1919-1944","Wärmepumpe",{"$f":"AVERAGE(11.854,10.173)","v":11.013500000000001},{"$f":"AVERAGE(56.7,48.7)","v":52.7}]
[null,"MWB","Wohngebäude mit 10+ Nutzeinheiten","ab 1991","Fernwärme Erneuerbar",7.14,35.9]
[null,"MWB","Wohngebäude mit 10+ Nutzeinheiten","ab 1991","Fernwärme Österreich-Mix",13.046000000000001,63]
[null,"MWB","Wohngebäude mit 10+ Nutzeinheiten","ab 1991","Holz ",5.2889999999999997,27.7]
[null,"MWB","Wohngebäude mit 10+ Nutzeinheiten","ab 1991","Wärmepumpe",9.3770000000000007,44.8]

{"sheet":"Kalk Dämmung","index":8,"n_rows":26,"n_cols":14,"rows_kept":26,"cut":false,"hidden":true,"merged":[[22,8,22,10],[23,8,23,10],[1,1,1,13],[16,8,16,10],[15,8,15,10],[16,1,16,4],[15,1,15,4]]}
[]
[null,"Kalkulation Dämmung je m² BGF"]
[]
[null,"Art","Größe","Anz Gesch","Höhe m","BGF m²","GF m2","Volumen m³","Hülle m²","Ch Länge m","San Dämmung m","Dämmung m³","Verhältnis Dämmung/BGF","Verhältnis Stock"]
[null,"EF","10/12m",2,10,240,120,648,477,1.36,0.16,{"$f":"I5*K5","v":76.320000000000007},{"$f":"L5/F5","v":0.318}]
[null,"EF II","10/12m",2,null,240,null,null,null,null,0.2,{"$f":"$I$5*K6","v":95.4},0.39750000000000002]
[null,"EF III","10/12m",2,null,240,null,null,null,null,0.24,{"$f":"I5*K7","v":114.47999999999999},0.47699999999999998]
[null,"MFH I","12/13m",3,null,{"$f":"G9*D8","v":468},null,973,717,1.76,0.2,{"$f":"K8*I8","v":143.4},0.30641025641025643]
[null,"MFH II","12/13m",4,16,624,{"$f":"F9/4","v":156},null,852,1.98,0.2,{"$f":"K9*I9","v":170.4},0.27307692307692311,{"$f":"L9/L8","v":1.1882845188284519}]
[null,"MGW I","13/42m",3,null,1638,{"$f":"F10/D10","v":546},4422,1983,2.23,0.2,{"$f":"K10*I10","v":396.6},0.24212454212454212]
[null,"MGW II","13/42m",4,null,{"$f":"G10*D11","v":2184},null,5897,2280,2.59,0.2,{"$f":"K11*I11","v":456},0.2087912087912088,{"$f":"L11/L10","v":1.1497730711043872}]
[null,"MGW III","13/42m",5,null,2730,null,7371,2577,2.86,0.2,{"$f":"K12*I12","v":515.4},0.18879120879120878,{"$f":"L12/L11","v":1.1302631578947369}]
[]
[]
[]
[null,"Dämmung",null,null,null,null,null,null,"Emissionsfaktor"]
[null,"[m³ Dämmung je m² BGF]",null,null,null,null,null,null," Dämmung [kg CO2e/m³ Dämmmaterial]",null,null,"Default"]
[" ","Wohngebäude mit 1-2 Nutzeinheiten",null,null,0.4,null,null,null,"Standard Dämmung",null,{"$f":"Parameter!C25","v":67},{"$f":"D25*F25","v":67}]
[" ","Wohngebäude mit 3-9 Nutzeinheiten",null,null,0.3,null,null,null,"Ökologische Dämmung ",null,{"$f":"Parameter!C26","v":60.42},{"$f":"D26*F26","v":60.42}]
[" ","Wohngebäude mit 10+ Nutzeinheiten",null,null,0.2]
[]
[]
[null,null,null,"Emissionen","PEB fossil","Dichte",null,null,"PEB fossil"]
[null,null,null,"kgCO2/kg","kWh/kg","kg/m³",null,null," Dämmung [kWh/m³ Dämmmaterial]",null,null,"Default","PEB [MJ/kg]"]
[null,"Standard Dämmung",null,2.68,{"$f":"M25/3.6","v":25.333333333333332},25,null,null,"Standard Dämmung",null,{"$f":"Parameter!E25","v":633.33333333333326},{"$f":"E25*F25","v":633.33333333333326},91.2]
[null,"Ökologische Dämmung ",null,1.59,{"$f":"M26/3.6","v":8.5},38,null,null,"Ökologische Dämmung ",null,{"$f":"Parameter!E26","v":323},{"$f":"E26*F26","v":323},30.6]

{"sheet":"Kalk Bausubstanz","index":9,"n_rows":48,"n_cols":17,"rows_kept":48,"cut":false,"hidden":true,"merged":[[1,1,1,16],[40,6,40,7],[41,6,41,7],[15,1,15,16],[40,2,40,4],[41,2,41,4],[20,21,25,21],[3,1,3,16],[30,2,30,4],[31,2,31,4],[31,6,31,7],[30,6,30,7],[31,10,31,11]]}
[]
[null,"Kalkulation Bausubstanz"]
[]
[null,"Bausubstanz [m³/m² BGF]"]
[]
[null,"Art","Wohngebäude mit 1-2 Nutzeinheiten","Wohngebäude mit 1-2 Nutzeinheiten2","Wohngebäude mit 1-2 Nutzeinheiten3","Wohngebäude mit 1-2 Nutzeinheiten4","Wohngebäude mit 1-2 Nutzeinheiten5","Wohngebäude mit 3-9 Nutzeinheiten","Wohngebäude mit 3-9 Nutzeinheiten2","Wohngebäude mit 3-9 Nutzeinheiten3","Wohngebäude mit 3-9 Nutzeinheiten4","Wohngebäude mit 3-9 Nutzeinheiten5","Wohngebäude mit 10+ Nutzeinheiten","Wohngebäude mit 10+ Nutzeinheiten2","Wohngebäude mit 10+ Nutzeinheiten3","Wohngebäude mit 10+ Nutzeinheiten4","Wohngebäude mit 10+ Nutzeinheiten5"]
[null,"Kürzel","EFH","EFH","EFH","EFH","EFH","MFH","MFH","MFH","MFH","MFH","MWB","MWB","MWB","MWB","MWB"]
[null,"Bauperiode","bis 1918","1919-1944","1945-1960","1961-1990","ab 1991","bis 1918","1919-1944","1945-1960","1961-1990","1991 bis","bis 1918","1919-1944","1945-1960","1961-1990","ab 1991"]
[null,"Holz",9.9671879396984922E-2,0,0,0,0.58281984000000009,8.4789371980676334E-2,0.14426005420054203,1.2115508021390377E-3,0,1.9980582524271845E-2,0.1692757347204161,0.10758498985801219,2.7979861796643643E-3,3.7650983746792144E-3,0]
[null,"Ziegel",0.49949748743718597,0.41209039548022597,0.24069078947368422,0,0,0.38096618357487927,0.35891598915989159,0.18088235294117644,0,0,0.37732119635890765,0.26125760649087221,0,0,0]
[null,"Beton",0.11595477386934673,0,0,0.49527950310559005,0,8.345410628019323E-2,0,0,0,0,0,8.3333333333333329E-2,0,0,0]
[null,"Stahl",5.5658291457286431E-3,0,0,0,0,0,0,0,0,0,0,0,0,0,0]
[null,"Glas",6.3754199569274932E-4,1.1127012106537531E-3,1.3637413533834583E-3,3.661935758651287E-3,5.3198262857142853E-3,8.4858523119392697E-4,6.0357723577235769E-4,8.166967150496561E-4,1.8624117049380203E-3,1.665509015256588E-3,7.8784321010588894E-4,7.2605042016806723E-4,1.8861001269214494E-3,2.5380227300501033E-3,1.8357600872410031E-3]
[null,"Stahlbeton",0,0.31728813559322033,0.31794407894736842,0.25838509316770186,0.37960000000000005,0,8.3265582655826564E-2,0.34969919786096254,0.38426742532005698,0.39750000000000002,0,0,0.23409674234945707,0.26682634730538923,0.35794529262086511]
[]
[null,"Bausubstanz [kg/m² BGF]"]
[]
[null,"Art","Wohngebäude mit 1-2 Nutzeinheiten","Wohngebäude mit 1-2 Nutzeinheiten2","Wohngebäude mit 1-2 Nutzeinheiten3","Wohngebäude mit 1-2 Nutzeinheiten4","Wohngebäude mit 1-2 Nutzeinheiten5","Wohngebäude mit 3-9 Nutzeinheiten","Wohngebäude mit 3-9 Nutzeinheiten2","Wohngebäude mit 3-9 Nutzeinheiten3","Wohngebäude mit 3-9 Nutzeinheiten4","Wohngebäude mit 3-9 Nutzeinheiten5","Wohngebäude mit 10+ Nutzeinheiten","Wohngebäude mit 10+ Nutzeinheiten2","Wohngebäude mit 10+ Nutzeinheiten3","Wohngebäude mit 10+ Nutzeinheiten4","Wohngebäude mit 10+ Nutzeinheiten5"]
[null,"Kürzel","EFH","EFH","EFH","EFH","EFH","MFH","MFH","MFH","MFH","MFH","MWB","MWB","MWB","MWB","MWB"]
[null,"Bauperiode","bis 1918","1919-1944","1945-1960","1961-1990","ab 1991","bis 1918","1919-1944","1945-1960","1961-1990","1991 bis","bis 1918","1919-1944","1945-1960","1961-1990","ab 1991"]
[null,"Holz",{"$f":"C9*$L33","v":52.726424201005024},0,0,0,308.31169536000004,44.85357777777778,76.313568672086731,0.64091037433155096,0,10.569728155339806,89.546863667100112,56.91245963488845,1.4801346890424487,1.9917370402053045,0]
[null,"Ziegel",{"$f":"C10*$L34","v":349.64824120603021},288.46327683615817,168.48355263157896,0,0,266.67632850241552,251.24119241192412,126.61764705882351,0,0,264.12483745123535,182.88032454361056,0,0,0]
[null,"Beton",{"$f":"C11*$L35","v":278.29145728643215},0,0,1188.670807453416,0,{"$f":"H11*$L35","v":200.28985507246375},0,0,0,{"$f":"L11*$L35","v":0},0,200,0,0,0]
[null,"Stahl",{"$f":"C12*$L36","v":43.970050251256282},0,0,0,0,0,0,0,{"$f":"K12*$L36","v":0},0,0,0,0,0,0]
[null,"Glas",{"$f":"C13*$L37","v":1.5938549892318734},2.7817530266343828,3.4093533834586456,9.1548393966282173,13.299565714285713,2.1214630779848176,1.5089430894308942,2.0417417876241402,4.6560292623450508,4.1637725381414699,1.9696080252647223,1.8151260504201681,4.7152503173036235,6.3450568251252584,4.589400218102508]
[null,"Stahlbeton",{"$f":"C14*$L38","v":0},{"$f":"D14*$L38","v":761.49152542372883},763.06578947368416,620.12422360248445,911.04000000000008,0,199.83739837398375,839.27807486631013,922.24182076813679,954,0,0,561.83218163869697,640.38323353293413,859.0687022900762]
[null,"kg CO2 eq je m² BGF",{"$f":"C21*$H$33+C22*$H$34+C23*$H$35+C24*$H$36+C25*$H$37+C26*$H$38","v":168.49621108393396},{"$f":"D21*$H$33+D22*$H$34+D23*$H$35+D24*$H$36+D25*$H$37+D26*$H$38","v":173.46558934624699},145.9317064849624,{"$f":"F21*$H$33+F22*$H$34+F23*$H$35+F24*$H$36+F25*$H$37+F26*$H$38","v":199.43413948535937},{"$f":"G21*$H$33+G22*$H$34+G23*$H$35+G24*$H$36+G25*$H$37+G26*$H$38","v":224.57771546331432},96.225081951000689,{"$f":"I21*$H$33+I22*$H$34+I23*$H$35+I24*$H$36+I25*$H$37+I26*$H$38","v":109.73157845365853},144.90021980809777,128.70203617150989,135.42852231622749,90.285011448857503,79.4393265682411,80.894126074996478,93.358560857509474,120.16354634678298]
[null,"kWh je m² BGF",{"$f":"C21*$H$43+C22*$H$44+C23*$H$45+C24*$H$46+C25*$H$47+C26*$H$48","v":687.73800831225981},458.27153062505607,324.83942778822052,276.52749837326235,592.81801052647631,393.12203543861671,{"$f":"I21*$H$43+I22*$H$44+I23*$H$45+I24*$H$46+I25*$H$47+I26*$H$48","v":420.68769085546523},284.25704232340206,163.50165142586198,179.92983670057021,423.00630773955038,312.0431582393187,109.38149633019948,129.13545640562413,153.36015388343634]
[]
[]
[null,null,"Emissionen",null,null,null,"Emissionsfaktor"]
[null,null,"Bausubstanz [kg CO2eq/m² BGF]",null,null,null,"Bausubstanz [kg CO2e/kg]",null,"Default",null,"Dichte [kg/m³]",null,"Default"]
[null,0,"Wohngebäude mit 1-2 Nutzeinheiten","Wohngebäude mit 3-9 Nutzeinheiten","Wohngebäude mit 10+ Nutzeinheiten"," ","Holz",{"$f":"Parameter!C13","v":0.28499999999999998},0.28499999999999998,null,"Holz",{"$f":"Parameter!I13","v":529},529]
[null,"bis 1918",{"$f":"'Kalk Bausubstanz'!C27","v":168.49621108393396},{"$f":"'Kalk Bausubstanz'!H27","v":96.225081951000689},{"$f":"'Kalk Bausubstanz'!M27","v":90.285011448857503},null,"Ziegel",{"$f":"Parameter!C14","v":0.23699999999999999},0.23699999999999999,null,"Ziegel",{"$f":"Parameter!I14","v":700},700]
[null,"1919-1944",{"$f":"'Kalk Bausubstanz'!D27","v":173.46558934624699},{"$f":"'Kalk Bausubstanz'!I27","v":109.73157845365853},{"$f":"'Kalk Bausubstanz'!N27","v":79.4393265682411},null,"Beton",{"$f":"Parameter!C15","v":8.9399999999999993E-2},8.9399999999999993E-2,null,"Beton",{"$f":"Parameter!I15","v":2400},2400]
[null,"1945-1960",{"$f":"'Kalk Bausubstanz'!E27","v":145.9317064849624},{"$f":"'Kalk Bausubstanz'!J27","v":144.90021980809777},{"$f":"'Kalk Bausubstanz'!O27","v":80.894126074996478},null,"Stahl",{"$f":"Parameter!C16","v":1},1,null,"Stahl",{"$f":"Parameter!I16","v":7900},7900]
[null,"1961-1990",{"$f":"'Kalk Bausubstanz'!F27","v":199.43413948535937},{"$f":"'Kalk Bausubstanz'!K27","v":128.70203617150989},{"$f":"'Kalk Bausubstanz'!P27","v":93.358560857509474},null,"Glas",{"$f":"Parameter!C17","v":1.1000000000000001},1.1000000000000001,null,"Glas",{"$f":"Parameter!I17","v":2500},2500]
[null,"ab 1991",{"$f":"'Kalk Bausubstanz'!G27","v":224.57771546331432},{"$f":"'Kalk Bausubstanz'!L27","v":135.42852231622749},{"$f":"'Kalk Bausubstanz'!Q27","v":120.16354634678298},null,"Stahlbeton",{"$f":"Parameter!C18","v":0.13400000000000001},0.13400000000000001,null,"Stahlbeton",{"$f":"Parameter!I18","v":2400},2400]
[]
[]
[null,null,"PEB fossil",null,null,null,"PEB fossil"]
[null,null,"Bausubstanz [kWh/m² BGF]",null,null,null,"Bausubstanz [kWh/kg]",null,"Default","PEB [MJ/kg]"]
[null,0,"Wohngebäude mit 1-2 Nutzeinheiten","Wohngebäude mit 3-9 Nutzeinheiten","Wohngebäude mit 10+ Nutzeinheiten"," ","Holz",{"$f":"Parameter!E13","v":1.2805555555555557},{"$f":"J43/3.6","v":1.2805555555555557},4.6100000000000003]
[null,"bis 1918",{"$f":"C28","v":687.73800831225981},{"$f":"H28","v":393.12203543861671},{"$f":"M28","v":423.00630773955038},null,"Ziegel",{"$f":"Parameter!E14","v":1.1361111111111111},{"$f":"J44/3.6","v":1.1361111111111111},4.09]
[null,"1919-1944",{"$f":"D28","v":458.27153062505607},{"$f":"I28","v":420.68769085546523},{"$f":"N28","v":312.0431582393187},null,"Beton",{"$f":"Parameter!E15","v":0.11888888888888888},{"$f":"J45/3.6","v":0.11888888888888888},0.42799999999999999]
[null,"1945-1960",{"$f":"E28","v":324.83942778822052},{"$f":"J28","v":284.25704232340206},{"$f":"O28","v":109.38149633019948},null,"Stahl",{"$f":"Parameter!E16","v":4.166666666666667},{"$f":"J46/3.6","v":4.166666666666667},15]
[null,"1961-1990",{"$f":"F28","v":276.52749837326235},{"$f":"K28","v":163.50165142586198},{"$f":"P28","v":129.13545640562413},null,"Glas",{"$f":"Parameter!E17","v":4.1944444444444446},{"$f":"J47/3.6","v":4.1944444444444446},15.1]
[null,"ab 1991",{"$f":"G28","v":592.81801052647631},{"$f":"L28","v":179.92983670057021},{"$f":"Q28","v":153.36015388343634},null,"Stahlbeton",{"$f":"Parameter!E18","v":0.15611111111111112},{"$f":"J48/3.6","v":0.15611111111111112},0.56200000000000006]

{"sheet":"Quelle Bsp","index":10,"n_rows":48,"n_cols":5,"rows_kept":48,"cut":false,"hidden":true,"merged":[[7,4,10,8],[11,4,12,8],[47,4,54,8],[14,4,17,8],[19,4,22,8],[29,4,36,8],[38,4,45,8]]}
[]
[]
[]
[]
[]
[]
[]
[null,null,null,null,"https://www.ots.at/presseaussendung/OTS_20210423_OTS0078/jungwald-leistet-klimaschutz"]
[]
[]
[]
[]
[]
[]
[null,null,null,null,"https://www.umweltbundesamt.at/fileadmin/site/themen/mobilitaet/daten/ekz_fzkm_verkehrsmittel.pdf"]
[]
[]
[]
[]
[null,null,null,null,"https://co2calc.climateaustria.at/co2calculator/flightSubmitAirports"]
[]
[]
[]
[]
[]
[]
[]
[]
[]
[null,null,null,null,"Der Ministerrat hat heute vormittag die Stromkostenbremse beschlossen. Sie ist für circa 80 Prozent des Durchschnittsverbrauchs eines österreichischen Haushalts wirksam und wird den gestiegenen Energiekosten massiv entgegenwirken. Für den Verbrauch über 2.900 kWh hinaus muss der Marktpreis bezahlt werden. Dadurch wird auch ein Anreiz zum Stromsparen gesetzt.\n\n80 % = 2900, 100 % = 3600\n\nhttps://infothek.bmk.gv.at/entlastung-strompreis-stromkostenbremse/"]
[]
[]
[]
[]
[]
[]
[]
[]
[null,null,null,null,"Eigenen Sonnenstrom tanken\nBesonders für Hausbesitzende im ländlichen Raum bietet sich das Tanken mit eigenem Sonnenstrom an. Ein Carport mit 12 Quadratmeter Solardach (Photovoltaik-Module) ist ausreichend um jährlich 2.200 Kilowattstunden (kWh) Strom für 15.000 km mit dem Elektro-Auto (Verbrauch von 14,9 kWh/100 km) zu erzeugen. Damit macht man sich unabhängig von Ölkrisen und ist gleichzeitig klimafreundlich mobil.\n\nhttps://www.bmk.gv.at/themen/mobilitaet/alternative_verkehrskonzepte/elektromobilitaet/zahlen/faktencheck.html"]
[]
[]
[]
[]
[]
[]
[]
[]
[null,null,null,null,"Die einen backen mehrmals in der Woche, die anderen nur sporadisch – aber ganz ohne Backofen kommt kaum ein Haushalt aus. Bei häufiger Nutzung wird er zu einem der größten Stromverbraucher im Haushalt. Denn das Backen ist sehr energieaufwendig. Als Richtwert gilt, dass ein Backofen bei 200 Grad pro Stunde einen Stromverbrauch von 1500 bis 2000 Watt aufweist.\n\nhttps://www.energie.web.de/ratgeber/verbrauch/stromverbrauch-backofen/#:~:text=Bei%20h%C3%A4ufiger%20Nutzung%20wird%20er,1500%20bis%202000%20Watt%20aufweist."]

{"sheet":"Listen","index":11,"n_rows":37,"n_cols":2,"rows_kept":37,"cut":false,"hidden":true,"merged":[]}
[]
[]
[null,"Bauperiode"]
[null,"bitte auswählen"]
[null,"bis 1918"]
[null,"1919-1944"]
[null,"1945-1960"]
[null,"1961-1990"]
[null,"ab 1991"]
[]
[null,"Gebäudeart"]
[null,"bitte auswählen"]
[null,"Wohngebäude mit 1-2 Nutzeinheiten"]
[null,"Wohngebäude mit 3-9 Nutzeinheiten"]
[null,"Wohngebäude mit 10+ Nutzeinheiten"]
[]
[null,"Dämmung:"]
[null,"bitte auswählen"]
[null,"Standard Dämmung"]
[null,"Ökologische Dämmung "]
[]
[null,"Wärmebereitsstellungssystem Bestand:"]
[null,"bitte auswählen"]
[null,"Erdgas "]
[null,"Erdgas Brennwert "]
[null,"Heizöl "]
[null,"Holz "]
[null,"Fernwärme Erneuerbar"]
[null,"Fernwärme Österreich-Mix"]
[null,"Wärmepumpe "]
[]
[null,"Wärmebereitsstellungssystem Neu:"]
[null,"bitte auswählen"]
[null,"Holz "]
[null,"Fernwärme Erneuerbar"]
[null,"Fernwärme Österreich-Mix"]
[null,"Wärmepumpe"]

{"sheet":"Farben","index":12,"n_rows":68,"n_cols":31,"rows_kept":68,"cut":false,"hidden":true,"merged":[[1,2,1,19]]}
[]
[null,null,"Klimaaktiv Farben"]
[]
[]
[]
[null,null,"Primärfarben",null,null,null,null,"Funktionsfarben"]
[]
[null,null,null,0,0,0,null,null,239,244,247]
[null,null,null,230,50,15,null,null,228,235,240]
[null,null,null,225,50,15,null,null,217,227,232]
[null,null,null,167,39,2]
[null,null,null,null,null,null,null,null,246,244,240]
[null,null,null,null,null,null,null,null,240,236,232]
[null,null,null,null,null,null,null,null,233,228,223]
[]
[]
[]
[null,null,"ka Logo",null,null,null,null,"ka Logo 40%"]
[]
[null,null,null,252,215,0,null,null,251,237,168]
[null,null,null,201,210,0,null,null,222,235,172]
[null,null,null,82,174,50,null,null,183,220,172]
[null,null,null,0,145,207,null,null,161,199,235]
[null,null,null,151,0,82,null,null,206,144,172]
[]
[]
[]
[null,null,"Sekundärfarben"]
[]
[null,null,null,255,212,0]
[null,null,null,187,207,0]
[null,null,null,95,181,100]
[null,null,null,59,172,190]
[null,null,null,78,143,204]
[null,null,null,0,99,163]
[null,null,null,0,61,132]
[null,null,null,71,29,112]
[null,null,null,98,12,59]
[null,null,null,149,15,83]
[null,null,null,202,2,55]
[null,null,null,245,156,0]
[]
[]
[null,null,"Paare"]
[]
[null,null,null,78,143,204,null,null,187,207,0,null,null,255,212,0]
[null,null,null,202,2,55,null,null,71,29,112,null,null,0,61,132]
[]
[null,null,null,59,172,190,null,null,245,156,0,null,null,95,181,100]
[null,null,null,149,15,83,null,null,0,99,163,null,null,98,12,59]
[]
[]
[null,null,"Sekundärfarben Abstufungen"]
[]
[null,null,null,255,244,206,null,null,239,243,208,null,null,223,237,218,null,null,217,233,239,null,null,215,225,243,null,null,192,209,232]
[null,null,null,255,232,151,null,null,222,230,155,null,null,186,218,179,null,null,177,214,222,null,null,176,196,231,null,null,127,168,209]
[null,null,null,255,222,83,null,null,207,218,92,null,null,145,200,141,null,null,127,192,205,null,null,130,169,218,null,null,42,131,186]
[null,null,null,255,212,0,null,null,188,207,0,null,null,95,181,100,null,null,59,172,190,null,null,78,143,204,null,null,0,99,163]
[null,null,null,206,173,0,null,null,152,169,0,null,null,77,149,83,null,null,48,142,156,null,null,65,118,167,null,null,0,76,126]
[null,null,null,153,130,0,null,null,113,128,0,null,null,56,113,63,null,null,35,107,118,null,null,48,89,126,null,null,0,49,84]
[]
[]
[null,null,null,192,196,223,null,null,200,189,218,null,null,207,184,194,null,null,224,196,207,null,null,242,202,198,null,null,254,230,200]
[null,null,null,132,142,190,null,null,149,127,178,null,null,165,119,140,null,null,196,136,159,null,null,229,146,142,null,null,252,206,142]
[null,null,null,73,97,160,null,null,107,73,140,null,null,129,64,94,null,null,171,79,117,null,null,216,87,94,null,null,249,181,79]
[null,null,null,0,61,132,null,null,71,29,112,null,null,98,13,59,null,null,149,15,83,null,null,202,2,55,null,null,245,156,0]
[null,null,null,0,45,102,null,null,56,17,86,null,null,64,0,33,null,null,114,7,61,null,null,158,5,41,null,null,197,127,0]
[null,null,null,0,25,67,null,null,38,0,56,null,null,null,null,null,null,null,74,0,34,null,null,110,3,22,null,null,148,96,0]

{"sheet":"Lebenszyklus","index":13,"n_rows":19,"n_cols":18,"rows_kept":19,"cut":false,"hidden":true,"merged":[[9,4,14,4],[9,3,14,3],[9,2,14,2],[9,9,14,9],[9,8,14,8],[9,7,14,7],[9,6,14,6],[9,5,14,5],[5,17,5,18],[3,2,3,18],[6,17,7,18],[6,12,7,15],[9,15,14,15],[5,2,5,4],[5,5,5,6],[5,7,5,11],[6,2,7,4],[9,14,14,14],[9,13,14,13],[9,12,14,12],[9,11,14,11],[9,10,14,10],[8,17,12,18],[13,17,18,18],[6,5,7,6],[6,7,7,11],[16,7,16,11],[18,7,18,11],[5,12,5,15]]}
[]
[]
[]
[null,null,"Angaben zum Lebenszyklus des Gebäudes EN 15978"]
[]
[null,null,"A 1-3",null,null,"A 4-5",null,"B 1-7",null,null,null,null,"C1-4",null,null,null,null,"D"]
[null,null,"Herstellungsphase",null,null,"Errichtungs-phase",null,"Nutzungsphase",null,null,null,null,"Entsorgungsphase",null,null,null,null,"Ergänzende Informationen außerhabl des Gebäudezyklus"]
[]
[null,null,"A1","A2","A3","A4-5","A5","B1","B2","B3","B4","B5","C1","C2","C3","C4",null,"Vorteile und Belastungen außerhalb der Systemgrenze"]
[null,null,"Rohstoff-beschaffung","Transport","Produktion","Transport","Errichtung/Einbau","Nutzungsphase","Instandhaltung","Instandsetzung","Austausch","Modernisierung","Rückbau/Abriss","Transport","Abfallbehandlung","Beseitigung"]
[]
[]
[]
[null,null,null,null,null,null,null,null,null,null,null,null,null,null,null,null,null,"Potential für Wiederverwendung, Rückgewinnung und Recycling"]
[]
[]
[null,null,null,null,null,null,null,"B6 Energieverbrauch im Betrieb"]
[]
[null,null,null,null,null,null,null,"B7 Wasserverbrauch im Betrieb"]